bitfinex-derivatives/quotes_BTCF0:USTF0_20241029
["timestamp","ask_amount","ask_price","bid_price","bid_amount"]
[1730231918233,0.068648,72839.0,72835.0,0.3608]
[1730231918630,0.19772657,72841.0,72829.0,0.3608]
[1730231918836,0.068649,72838.0,72830.0,0.068656]
[1730231919837,0.19772657,72841.0,72830.0,0.068656]
[1730231920042,0.06865,72837.0,72830.0,0.068656]
[1730231920342,0.3608,72831.0,72830.0,0.068656]
[1730231920547,0.3608,72831.0,72823.0,0.01771395]
[1730231920736,0.3608,72825.0,72813.0,0.00205947]
[1730231921040,0.3608,72825.0,72819.0,0.068666]
[1730231921431,0.3608,72825.0,72820.0,0.068665]
[1730231922241,0.3608,72825.0,72815.0,0.19772657]
[1730231922242,0.3608,72825.0,72816.0,0.068669]
[1730231922442,0.3608,72825.0,72817.0,0.3608]
[1730231922640,0.3608,72825.0,72820.0,0.19772657]
[1730231922833,0.3608,72825.0,72824.0,0.068662]
[1730231923743,0.3608,72825.0,72817.0,0.3608]
[1730231923935,0.3608,72825.0,72817.0,0.429468]
[1730231924247,0.26638357,72830.0,72821.0,0.068664]
[1730231924547,0.06866,72826.0,72817.0,0.429468]
[1730231925044,0.19772657,72830.0,72817.0,0.429468]
[1730231925433,0.068662,72824.0,72817.0,0.429468]
[1730231925944,0.19772657,72830.0,72817.0,0.3608]
[1730231926242,0.06866,72826.0,72817.0,0.429468]
[1730231926637,0.06866,72826.0,72819.0,0.068666]
[1730231926842,0.429454,72832.0,72825.0,0.26638657]
[1730231927036,0.196231,72857.0,72831.0,0.19772657]
[1730231927037,0.068644,72844.0,72831.0,0.19772657]
[1730231927231,0.3608,72849.0,72829.0,0.3608]
[1730231927232,0.19772657,72848.0,72835.0,0.3608]
[1730231927432,0.06865,72836.0,72835.0,0.3608]
[1730231927741,0.3608,72836.0,72830.0,0.12392]
[1730231928046,0.068652,72834.0,72830.0,0.12392]
[1730231928338,0.3608,72836.0,72830.0,0.12392]
[1730231928539,0.3608,72842.0,72833.0,0.3608]
[1730231928739,0.068653,72833.0,72830.0,0.12392]
[1730231929134,0.068655,72832.0,72830.0,0.14210077]
[1730231929342,0.19772657,72840.0,72830.0,0.14210077]
[1730231929542,0.068651,72836.0,72830.0,0.14210077]
[1730231930344,0.068651,72836.0,72830.0,0.21075677]
[1730231932141,0.068651,72836.0,72830.0,0.57155677]
[1730231933051,0.3608,72831.0,72830.0,0.21075677]
[1730231933249,0.3608,72841.0,72830.0,0.14210077]
[1730231933250,0.068652,72835.0,72830.0,0.14210077]
[1730231933838,0.19772657,72833.0,72830.0,0.01818077]
[1730231934042,0.068655,72831.0,72827.0,0.36232]
[1730231934353,0.429452,72835.0,72827.0,0.44771254]
[1730231934553,1.5,72834.0,72827.0,0.44771254]
[1730231935051,1.5,72834.0,72832.0,0.19772657]
[1730231935243,0.3608,72841.0,72832.0,0.19772657]
[1730231935547,0.3608,72841.0,72840.0,0.068647]
[1730231935851,0.3608,72850.0,72840.0,0.22717542]
[1730231936150,0.3608,72850.0,72849.0,0.068638]
[1730231936346,0.068631,72857.0,72849.0,0.068638]
[1730231936544,0.3608,72863.0,72851.0,0.19772657]
[1730231936749,0.068635,72853.0,72849.0,0.3608]
[1730231937050,0.068635,72853.0,72849.0,0.37876398]
[1730231937552,0.19772657,72860.0,72849.0,0.37876398]
[1730231937742,0.068632,72856.0,72849.0,0.37876398]
[1730231937939,0.068632,72856.0,72851.0,0.05469753]
[1730231938348,1.50084,72862.0,72851.0,0.2524241]
[1730231938548,1.50084,72862.0,72854.0,0.068633]
[1730231938750,0.068628,72860.0,72854.0,0.068633]
[1730231939148,1.50084,72862.0,72851.0,0.2524241]
[1730231939451,1.50084,72862.0,72851.0,0.05469753]
[1730231939452,0.068633,72855.0,72851.0,0.05469753]
[1730231939748,1.50084,72862.0,72851.0,0.05469753]
[1730231939944,0.3608,72857.0,72854.0,0.068633]
[1730231940341,0.3608,72857.0,72851.0,0.05469753]
[1730231940342,0.068635,72852.0,72851.0,0.05469753]
[1730231940543,0.068643,72844.0,72829.0,0.3608]
[1730231940743,0.62716957,72844.0,72826.0,0.068659]
[1730231940942,0.62716957,72844.0,72822.0,0.4856]
[1730231940943,1.03900957,72844.0,72822.0,0.4856]
[1730231941148,0.068649,72837.0,72816.0,0.068668]
[1730231941350,0.068649,72837.0,72801.0,0.09493949]
[1730231941351,0.068669,72816.0,72801.0,0.09493949]
[1730231941552,0.068682,72802.0,72801.0,0.09493949]
[1730231941855,0.62720857,72802.0,72801.0,0.09493949]
[1730231942053,1.40008857,72802.0,72801.0,0.09493949]
[1730231942347,1.40008857,72802.0,72784.0,0.13562785]
[1730231942348,0.068698,72785.0,72784.0,0.13562785]
[1730231942547,2.80619114,72785.0,72784.0,0.13562785]
[1730231942749,3.21835114,72785.0,72784.0,0.13562785]
[1730231943054,0.068703,72780.0,72755.0,0.36236]
[1730231943251,0.068713,72770.0,72755.0,0.36236]
[1730231943457,0.19772657,72763.0,72762.0,0.06872]
[1730231943849,0.19772657,72763.0,72750.0,0.14440853]
[1730231944049,0.19772657,72751.0,72749.0,0.01824949]
[1730231944244,0.429531,72750.0,72744.0,0.00206195]
[1730231944448,0.19772657,72746.0,72744.0,0.02050039]
[1730231944645,0.3608,72748.0,72744.0,0.02050039]
[1730231944852,0.19772657,72747.0,72744.0,0.02050039]
[1730231945455,0.068736,72745.0,72744.0,0.02050039]
[1730231945957,0.481136,72745.0,72744.0,0.00206195]
[1730231946253,0.481136,72745.0,72710.0,0.00206291]
[1730231946254,0.3608,72736.0,72710.0,0.00206291]
[1730231946457,0.98809457,72711.0,72710.0,0.00206291]
[1730231946651,2.48809457,72711.0,72710.0,0.00206291]
[1730231946843,2.60857457,72711.0,72710.0,0.00206291]
[1730231947049,2.2216,72711.0,72710.0,0.07083191]
[1730231947253,2.83192657,72711.0,72681.0,0.3608]
[1730231947453,0.19772657,72683.0,72682.0,0.004301]
[1730231948160,0.19772657,72683.0,72680.0,0.1332]
[1730231948747,0.3608,72684.0,72680.0,0.1332]
[1730231949161,0.3608,72684.0,72656.0,0.30773736]
[1730231949162,0.6664729,72681.0,72656.0,0.30773736]
[1730231949347,0.3608,72665.0,72660.0,0.00430241]
[1730231949547,0.3608,72673.0,72664.0,0.15308569]
[1730231949754,0.3608,72673.0,72666.0,0.068811]
[1730231950154,0.3608,72667.0,72659.0,0.14267378]
[1730231950457,0.3608,72667.0,72656.0,0.00206446]
[1730231950458,0.068819,72657.0,72656.0,0.00206446]
[1730231950755,0.1206,72658.0,72656.0,0.00206446]
[1730231950955,0.429619,72657.0,72656.0,0.00206446]
[1730231951150,1.07368,72657.0,72641.0,0.00017089]
[1730231951352,0.06884,72635.0,72625.0,0.1239]
[1730231951651,1.9814,72635.0,72625.0,0.1239]
[1730231951851,1.5,72635.0,72634.0,0.08034354]
[1730231952060,1.5,72635.0,72634.0,0.01150254]
[1730231952265,1.8608,72635.0,72634.0,0.01150254]
[1730231952650,1.92964,72635.0,72634.0,0.01150254]
[1730231953056,1.8608,72635.0,72634.0,0.01150254]
[1730231953355,2.47012,72635.0,72634.0,0.01150254]
[1730231953558,0.068845,72630.0,72619.0,0.00206524]
[1730231953753,0.7216,72620.0,72619.0,0.00206524]
[1730231954358,0.790454,72620.0,72619.0,0.00206524]
[1730231954955,2.290454,72620.0,72619.0,0.00206524]
[1730231955360,2.417934,72620.0,72619.0,0.00206524]
[1730231955661,2.2216,72620.0,72619.0,0.00206524]
[1730231955854,2.34908,72620.0,72619.0,0.00206524]
[1730231956256,2.290454,72620.0,72619.0,0.00206524]
[1730231956452,0.790454,72620.0,72619.0,0.00206524]
[1730231956757,0.7216,72620.0,72619.0,0.00206524]
[1730231956959,0.3056729,72624.0,72619.0,0.00206524]
[1730231957167,0.3608,72651.0,72623.0,0.6664729]
[1730231957368,0.3608,72645.0,72638.0,0.3056729]
[1730231957555,0.3608,72639.0,72624.0,0.45067336]
[1730231957756,0.068842,72634.0,72624.0,0.3056729]
[1730231957961,0.3608,72639.0,72624.0,0.3056729]
[1730231958351,0.068838,72638.0,72631.0,0.3056729]
[1730231958558,0.3608,72645.0,72631.0,0.3056729]
[1730231958754,0.3608,72645.0,72619.0,0.02042182]
[1730231958755,0.3608,72654.0,72643.0,0.3056729]
[1730231958953,0.00206572,72661.0,72653.0,0.3056729]
[1730231959167,0.00206572,72661.0,72648.0,0.3608]
[1730231959168,0.3608,72669.0,72660.0,0.3056729]
[1730231959357,0.3608,72669.0,72668.0,0.3056729]
[1730231959759,0.3608,72686.0,72677.0,0.0688]
[1730231959958,0.3608,72689.0,72685.0,0.3056729]
[1730231960160,0.00206461,72693.0,72685.0,0.3056729]
[1730231960370,0.068794,72684.0,72677.0,0.3608]
[1730231960558,0.3608,72679.0,72673.0,0.3056729]
[1730231960957,0.068803,72674.0,72670.0,0.00206402]
[1730231961365,0.3608,72679.0,72670.0,0.00206402]
[1730231961366,0.3608,72672.0,72670.0,0.00206402]
[1730231961571,0.068806,72671.0,72670.0,0.00206402]
[1730231962663,0.481646,72671.0,72670.0,0.00206402]
[1730231963356,0.7873189,72671.0,72651.0,0.01788972]
[1730231963563,0.068826,72651.0,72643.0,0.00206481]
[1730231963760,0.3608,72648.0,72643.0,0.00206481]
[1730231964468,0.068831,72645.0,72643.0,0.00206481]
[1730231964767,0.3608,72667.0,72663.0,0.068814]
[1730231964958,0.3608,72667.0,72658.0,0.3056729]
[1730231965154,0.3608,72667.0,72665.0,0.068812]
[1730231965364,0.3608,72674.0,72669.0,0.068808]
[1730231965553,0.3608,72674.0,72664.0,0.3056729]
[1730231965757,0.3608,72674.0,72671.0,0.3056729]
[1730231965967,0.3608,72686.0,72678.0,0.068799]
[1730231966160,0.3608,72686.0,72681.0,0.068796]
[1730231966365,0.3608,72686.0,72677.0,0.3056729]
[1730231966675,0.3608,72686.0,72669.0,0.6664729]
[1730231966854,0.3608,72686.0,72666.0,0.3628641]
[1730231967055,0.3608,72680.0,72666.0,0.3628641]
[1730231967262,0.3608,72686.0,72669.0,0.3056729]
[1730231967470,0.3608,72686.0,72666.0,0.3628641]
[1730231967471,0.3608,72686.0,72676.0,0.3056729]
[1730231968268,0.3608,72686.0,72683.0,0.068795]
[1730231968465,0.3608,72686.0,72676.0,0.3056729]
[1730231968667,0.3608,72686.0,72674.0,0.429603]
[1730231968668,0.3608,72686.0,72682.0,0.3056729]
[1730231968859,0.00206461,72693.0,72686.0,0.068792]
[1730231969055,0.00206461,72693.0,72688.0,0.6664729]
[1730231969275,0.3608,72713.0,72689.0,0.7216]
[1730231969572,0.3608,72694.0,72689.0,0.14670754]
[1730231969773,0.3608,72694.0,72680.0,0.3608]
[1730231970268,0.3608,72694.0,72646.0,0.3056729]
[1730231970269,0.3608,72682.0,72666.0,0.02025794]
[1730231970569,0.068806,72671.0,72666.0,0.0020641]
[1730231970758,0.068808,72669.0,72666.0,0.0020641]
[1730231970959,0.429606,72672.0,72666.0,0.0020641]
[1730231971270,0.068808,72670.0,72666.0,0.0020641]
[1730231971456,0.6664729,72671.0,72638.0,0.3608]
[1730231971661,0.3608,72656.0,72645.0,0.3608]
[1730231971857,0.3608,72656.0,72643.0,0.3056729]
[1730231971858,0.3608,72656.0,72643.0,0.4512011]
[1730231972066,0.3608,72650.0,72635.0,0.3056729]
[1730231972285,0.3608,72642.0,72641.0,0.30582817]
[1730231972456,0.3608,72642.0,72641.0,0.00015527]
[1730231972656,0.3608,72650.0,72641.0,0.00015527]
[1730231972960,0.3608,72650.0,72643.0,0.068832]
[1730231973167,0.3608,72644.0,72641.0,0.00015527]
[1730231973466,0.3608,72644.0,72630.0,0.00206466]
[1730231973672,0.3608,72631.0,72630.0,0.00206466]
[1730231973973,0.7216,72631.0,72630.0,0.00206466]
[1730231974169,0.3608,72637.0,72630.0,0.00206466]
[1730231974364,0.3608,72631.0,72630.0,0.00206466]
[1730231975576,2.1664729,72631.0,72630.0,0.00206466]
[1730231975779,2.1664729,72631.0,72615.0,0.00529731]
[1730231976065,0.3056729,72624.0,72618.0,0.068856]
[1730231976370,0.3608,72625.0,72622.0,0.068852]
[1730231976570,0.3056729,72624.0,72615.0,0.00529731]
[1730231976764,0.3608,72616.0,72615.0,0.00529731]
[1730231977071,0.6664729,72616.0,72615.0,0.00529731]
[1730231977261,0.6664729,72616.0,72615.0,3.1e-07]
[1730231977262,1.0795929,72616.0,72615.0,3.1e-07]
[1730231977462,0.6664729,72616.0,72597.0,0.00676704]
[1730231977669,0.3608,72607.0,72598.0,0.068875]
[1730231978361,0.3608,72607.0,72597.0,0.00676704]
[1730231978561,0.068869,72605.0,72597.0,0.00676704]
[1730231978766,0.068875,72598.0,72597.0,0.00676704]
[1730231978967,0.7353479,72598.0,72597.0,0.00676704]
[1730231979166,0.6664729,72598.0,72597.0,0.00676704]
[1730231979368,2.1664729,72598.0,72597.0,0.00676704]
[1730231979571,1.8608,72598.0,72597.0,0.00676704]
[1730231979769,0.3608,72607.0,72603.0,0.068871]
[1730231979978,0.3608,72607.0,72597.0,0.15949459]
[1730231980163,0.3608,72607.0,72598.0,0.3]
[1730231980473,0.6664729,72599.0,72597.0,0.00676704]
[1730231980865,0.7353479,72599.0,72597.0,0.00676704]
[1730231981361,0.8908679,72599.0,72597.0,0.00676704]
[1730231981562,0.8908679,72599.0,72578.0,0.00663827]
[1730231981563,1.0877879,72598.0,72578.0,0.00663827]
[1730231981762,0.068889,72584.0,72578.0,0.00663827]
[1730231981963,0.6664729,72579.0,72578.0,0.00663827]
[1730231982462,0.0689,72573.0,72559.0,0.00329113]
[1730231982662,0.3056729,72563.0,72559.0,0.00329113]
[1730231982873,0.3608,72562.0,72559.0,0.00329113]
[1730231983071,0.3608,72562.0,72560.0,0.14807555]
[1730231983373,0.3608,72562.0,72559.0,0.00329113]
[1730231984476,0.3608,72594.0,72561.0,0.3056729]
[1730231984672,0.3608,72594.0,72560.0,1.0666354]
[1730231984673,0.3608,72577.0,72575.0,0.068897]
[1730231984870,0.3608,72577.0,72570.0,0.3056729]
[1730231985070,0.3608,72577.0,72570.0,0.3745749]
[1730231985281,0.3608,72577.0,72575.0,0.068897]
[1730231985573,0.0689,72573.0,72559.0,0.07220313]
[1730231985772,0.3608,72568.0,72566.0,0.068906]
[1730231985974,0.3608,72568.0,72565.0,0.15055167]
[1730231986172,0.3608,72568.0,72565.0,0.068906]
[1730231986364,0.3608,72577.0,72565.0,0.56807918]
[1730231986570,0.3608,72570.0,72565.0,0.15467918]
[1730231986771,0.3608,72570.0,72569.0,0.068903]
[1730231986966,0.3608,72570.0,72564.0,0.3745799]
[1730231987266,0.3608,72577.0,72565.0,0.86807918]
[1730231987481,0.3608,72586.0,72574.0,0.3056729]
[1730231987671,0.3608,72593.0,72573.0,0.3608]
[1730231987672,0.3608,72593.0,72587.0,0.068886]
[1730231987971,0.068875,72599.0,72588.0,0.3608]
[1730231988176,0.068875,72599.0,72588.0,0.50946746]
[1730231988372,0.3608,72601.0,72589.0,0.068883]
[1730231988574,0.3608,72601.0,72588.0,0.36236]
[1730231988779,0.3608,72601.0,72588.0,0.3608]
[1730231988970,0.3608,72601.0,72591.0,0.3056729]
[1730231989380,0.3608,72594.0,72588.0,0.3608]
[1730231989581,0.3608,72595.0,72588.0,0.3608]
[1730231989767,0.068885,72588.0,72577.0,0.068895]
[1730231989973,0.068882,72591.0,72578.0,0.068894]
[1730231990179,0.3608,72579.0,72577.0,0.3056729]
[1730231990475,0.3608,72585.0,72573.0,0.3056729]
[1730231990673,0.068893,72580.0,72578.0,0.14695273]
[1730231990874,0.3608,72585.0,72567.0,0.14695273]
[1730231991074,0.3608,72579.0,72569.0,0.068902]
[1730231991275,0.3608,72573.0,72570.0,0.00430838]
[1730231991474,0.3608,72573.0,72571.0,0.00430838]
[1730231991674,0.3608,72573.0,72565.0,0.429707]
[1730231991675,0.068897,72575.0,72561.0,0.3608]
[1730231991974,0.068897,72575.0,72562.0,0.15115247]
[1730231992175,0.3608,72579.0,72563.0,0.00430862]
[1730231992374,0.068903,72569.0,72559.0,0.00329113]
[1730231992674,0.3608,72572.0,72560.0,0.21757483]
[1730231992675,0.068902,72571.0,72560.0,0.21757483]
[1730231992874,0.3608,72566.0,72561.0,0.00430894]
[1730231993075,0.068908,72565.0,72559.0,0.00329113]
[1730231993271,0.3608,72564.0,72559.0,0.00329113]
[1730231993477,0.068911,72560.0,72559.0,0.00329113]
[1730231993682,0.3608,72564.0,72559.0,0.00329113]
[1730231993874,0.068911,72560.0,72559.0,0.00329113]
[1730231994070,1.5,72560.0,72559.0,0.00329113]
[1730231994382,0.3745839,72560.0,72559.0,0.15840004]
[1730231994569,0.068911,72560.0,72559.0,0.00329113]
[1730231994773,1.568911,72560.0,72559.0,0.00329113]
[1730231995176,1.5,72560.0,72559.0,0.00329113]
[1730231995586,0.068899,72573.0,72559.0,0.92557434]
[1730231995786,0.3745739,72572.0,72559.0,0.51213434]
[1730231996084,0.068902,72570.0,72559.0,0.15133434]
[1730231996288,0.068905,72567.0,72559.0,0.15133434]
[1730231996784,0.3608,72570.0,72559.0,0.15133434]
[1730231996983,0.068911,72560.0,72559.0,0.00329113]
[1730231997188,0.068925,72546.0,72545.0,0.00165832]
[1730231997391,0.068916,72555.0,72545.0,0.77597832]
[1730231997699,0.3608,72560.0,72547.0,0.3056729]
[1730231997902,0.3608,72560.0,72554.0,0.3056729]
[1730231998083,0.3608,72560.0,72550.0,0.06892]
[1730231998393,0.3608,72560.0,72547.0,0.3056729]
[1730231998394,0.3608,72560.0,72555.0,0.15057728]
[1730231998582,0.3608,72560.0,72552.0,0.068919]
[1730231998784,0.3608,72560.0,72553.0,0.86756038]
[1730231998976,0.3608,72560.0,72554.0,0.068917]
[1730231999179,0.3608,72560.0,72554.0,0.782397]
[1730231999388,0.3608,72560.0,72555.0,0.86756038]
[1730231999895,0.3608,72560.0,72556.0,0.41348]
[1730232000081,0.3608,72560.0,72557.0,0.41348]
[1730232000281,0.3608,72579.0,72559.0,0.3608]
[1730232000487,0.068872,72602.0,72576.0,0.3608]
[1730232000488,0.3608,72593.0,72576.0,0.3608]
[1730232000785,1.5,72592.0,72577.0,0.14431777]
[1730232000977,0.068887,72587.0,72577.0,0.14431777]
[1730232001178,0.068886,72587.0,72577.0,0.14431777]
[1730232001488,1.5,72592.0,72577.0,0.14431777]
[1730232001678,1.50072,72592.0,72577.0,0.14431777]
[1730232001884,0.3608,72587.0,72577.0,0.14431777]
[1730232002084,0.3608,72587.0,72577.0,0.16270846]
[1730232002506,0.3608,72587.0,72579.0,0.3608]
[1730232002708,1.5,72592.0,72580.0,0.6056729]
[1730232003003,1.5,72592.0,72586.0,0.3056729]
[1730232003205,1.5,72592.0,72589.0,0.068884]
[1730232003401,1.5,72592.0,72587.0,0.14795879]
[1730232003597,1.5,72592.0,72590.0,0.15923688]
[1730232003804,1.5,72592.0,72586.0,0.22812288]
[1730232004007,1.5,72592.0,72587.0,0.15923688]
[1730232004202,1.5,72592.0,72591.0,0.068882]
[1730232004398,1.5,72592.0,72591.0,0.429682]
[1730232004710,1.5,72592.0,72591.0,0.57818037]
[1730232005008,0.068903,72569.0,72568.0,0.04098277]
[1730232005201,0.068903,72569.0,72545.0,0.07058332]
[1730232005202,0.3056729,72564.0,72546.0,0.01773319]
[1730232005401,0.3056729,72564.0,72545.0,0.00165832]
[1730232005402,0.3608,72575.0,72560.0,0.14849837]
[1730232005608,0.3608,72575.0,72561.0,0.00430794]
[1730232005900,0.3608,72575.0,72561.0,0.15458704]
[1730232005901,0.068903,72569.0,72561.0,0.15458704]
[1730232006205,0.068903,72569.0,72545.0,0.02014822]
[1730232006206,0.3608,72562.0,72557.0,0.15458704]
[1730232006504,0.068914,72557.0,72547.0,0.3608]
[1730232006707,0.6664729,72562.0,72551.0,0.06892]
[1730232006708,0.3608,72556.0,72551.0,0.06892]
[1730232006907,0.3608,72556.0,72552.0,0.00430965]
[1730232007205,0.3608,72556.0,72553.0,0.00430956]
[1730232007416,0.3608,72556.0,72548.0,0.068923]
[1730232007715,0.3608,72556.0,72552.0,0.15054737]
[1730232008011,0.3608,72556.0,72547.0,0.3608]
[1730232008401,0.3608,72556.0,72548.0,0.52514327]
[1730232008608,0.3608,72556.0,72548.0,0.21947037]
[1730232008913,0.3608,72556.0,72548.0,0.15054737]
[1730232009216,0.3608,72568.0,72555.0,0.3608]
[1730232009410,0.3608,72576.0,72555.0,0.429716]
[1730232009411,0.0689,72572.0,72555.0,0.429716]
[1730232009709,0.429696,72576.0,72559.0,0.068912]
[1730232009923,0.429696,72576.0,72562.0,0.068909]
[1730232010211,0.3608,72584.0,72563.0,0.15676772]
[1730232010413,0.6664729,72589.0,72570.0,0.3608]
[1730232010620,0.068888,72585.0,72570.0,0.3608]
[1730232010911,0.6664729,72589.0,72571.0,0.14572631]
[1730232010912,0.0689,72572.0,72571.0,0.14572631]
[1730232011115,0.3056729,72575.0,72561.0,0.42971]
[1730232011308,0.068902,72570.0,72565.0,0.14572631]
[1730232011502,0.068902,72570.0,72562.0,0.14572631]
[1730232011503,0.068905,72567.0,72561.0,0.3608]
[1730232011711,0.068903,72569.0,72561.0,0.3608]
[1730232012008,0.3608,72570.0,72565.0,0.15925598]
[1730232012212,0.068904,72568.0,72562.0,0.15925598]
[1730232012406,0.3608,72570.0,72561.0,0.3608]
[1730232012607,0.3608,72570.0,72562.0,0.14429463]
[1730232013013,0.3608,72570.0,72562.0,0.21320363]
[1730232013214,0.3608,72570.0,72562.0,0.14429463]
[1730232013522,0.068905,72567.0,72562.0,0.14429463]
[1730232013815,0.068907,72565.0,72552.0,0.3608]
[1730232014017,0.068907,72565.0,72545.0,0.00165832]
[1730232014018,0.3608,72555.0,72545.0,0.00165832]
[1730232014224,0.068922,72550.0,72545.0,0.00165832]
[1730232014416,0.3608,72555.0,72546.0,0.14716871]
[1730232015007,0.429716,72555.0,72546.0,0.14716871]
[1730232015204,0.3608,72555.0,72550.0,0.068921]
[1730232015620,0.3608,72555.0,72551.0,0.15101614]
[1730232015812,0.3608,72555.0,72545.0,0.43138332]
[1730232016005,0.068917,72554.0,72546.0,0.15101614]
[1730232016209,0.068917,72554.0,72545.0,0.00165832]
[1730232016414,0.068917,72554.0,72547.0,0.0043097]
[1730232016721,0.068917,72554.0,72548.0,0.15778472]
[1730232017022,0.3608,72555.0,72545.0,0.00165832]
[1730232017023,0.3608,72555.0,72553.0,0.068918]
[1730232017211,0.3608,72555.0,72554.0,0.08012222]
[1730232017521,0.3608,72570.0,72554.0,0.15778472]
[1730232017722,0.068906,72567.0,72565.0,0.3608]
[1730232017909,0.3056729,72568.0,72566.0,0.0043097]
[1730232018111,0.3608,72579.0,72567.0,0.0043097]
[1730232018327,0.3608,72579.0,72570.0,0.068902]
[1730232018515,0.3608,72579.0,72571.0,0.0043097]
[1730232018714,0.3056729,72576.0,72572.0,0.0043097]
[1730232019016,0.068897,72575.0,72573.0,0.0043097]
[1730232019226,0.068897,72575.0,72574.0,0.0043097]
[1730232021217,0.3608,72579.0,72574.0,0.0043097]
[1730232021421,0.3608,72579.0,72575.0,0.0043097]
[1730232021617,0.3608,72579.0,72565.0,0.3608]
[1730232021819,0.068894,72578.0,72567.0,0.15508979]
[1730232022124,0.068894,72578.0,72568.0,0.00430858]
[1730232022326,0.3608,72595.0,72581.0,0.068891]
[1730232022511,0.3608,72595.0,72577.0,0.3056729]
[1730232022512,0.3608,72595.0,72592.0,0.068881]
[1730232022711,0.3608,72595.0,72593.0,0.0043079]
[1730232022915,0.429667,72607.0,72594.0,0.0043079]
[1730232023218,0.3608,72607.0,72605.0,0.3056729]
[1730232023416,0.3608,72623.0,72606.0,0.8353079]
[1730232023723,0.3056729,72614.0,72607.0,0.0043079]
[1730232024027,0.3608,72611.0,72608.0,0.0043079]
[1730232024228,0.3608,72611.0,72609.0,0.0043079]
[1730232024421,0.3608,72611.0,72610.0,0.0043079]
[1730232025019,0.3608,72611.0,72598.0,0.068875]
[1730232025320,0.3608,72611.0,72602.0,0.15919007]
[1730232025623,0.3608,72611.0,72603.0,0.00430673]
[1730232025828,0.3608,72611.0,72604.0,0.00430673]
[1730232026129,0.3608,72611.0,72605.0,0.00430673]
[1730232026423,0.3608,72611.0,72606.0,0.00430673]
[1730232026627,0.3608,72611.0,72607.0,0.00430673]
[1730232026828,0.3608,72611.0,72608.0,0.00430671]
[1730232027033,0.3608,72611.0,72599.0,0.3056729]
[1730232027335,0.3608,72611.0,72600.0,0.16086698]
[1730232027530,0.3608,72611.0,72601.0,0.00430668]
[1730232027832,0.3608,72611.0,72602.0,0.00430668]
[1730232028035,0.3608,72611.0,72603.0,0.00430668]
[1730232028225,0.3608,72618.0,72605.0,0.3056729]
[1730232028430,0.3608,72618.0,72617.0,0.3056729]
[1730232028830,0.3608,72618.0,72617.0,0.30997923]
[1730232029036,0.3608,72618.0,72617.0,0.87175735]
[1730232029532,0.33913177,72618.0,72617.0,0.87175735]
[1730232030030,0.3608,72631.0,72617.0,1.53255735]
[1730232030222,0.3608,72631.0,72630.0,0.3056729]
[1730232030422,0.3608,72631.0,72630.0,0.30997923]
[1730232030630,0.3608,72631.0,72630.0,0.46626782]
[1730232030928,0.3608,72631.0,72630.0,0.46196149]
[1730232031326,0.3608,72631.0,72630.0,0.87500149]
[1730232031631,0.3608,72641.0,72632.0,0.068843]
[1730232032024,0.3608,72641.0,72633.0,0.15041675]
[1730232032225,0.3608,72634.0,72633.0,0.15041675]
[1730232032736,0.3608,72634.0,72633.0,0.45608965]
[1730232032936,0.00206624,72647.0,72633.0,1.52992965]
[1730232033232,0.34002484,72653.0,72646.0,0.3056729]
[1730232033425,0.3608,72649.0,72634.0,0.0016]
[1730232033622,0.3608,72640.0,72633.0,0.36236]
[1730232033926,0.3608,72640.0,72635.0,0.1515265]
[1730232034131,0.3608,72640.0,72633.0,0.3608]
[1730232034132,0.3608,72640.0,72634.0,0.1515265]
[1730232034428,0.3608,72640.0,72628.0,0.01784332]
[1730232034429,0.3608,72635.0,72611.0,0.3056729]
[1730232034630,0.3608,72622.0,72611.0,0.3056729]
[1730232034832,0.3608,72622.0,72620.0,0.3056729]
[1730232035034,0.068854,72621.0,72616.0,0.15371918]
[1730232035235,0.3608,72622.0,72615.0,0.00206543]
[1730232035426,0.3608,72616.0,72615.0,0.00206543]
[1730232036432,0.3608,72616.0,72615.0,0.30773833]
[1730232036634,0.3608,72616.0,72615.0,0.46611023]
[1730232037829,0.3608,72622.0,72615.0,0.46611023]
[1730232038030,0.3608,72616.0,72615.0,0.16043733]
[1730232038236,0.3608,72616.0,72615.0,0.00206543]
[1730232038939,0.429658,72616.0,72615.0,0.00206543]
[1730232040227,0.3608,72616.0,72615.0,0.00206543]
[1730232040833,0.3608,72616.0,72615.0,0.07092443]
[1730232041035,0.3608,72622.0,72621.0,0.068854]
[1730232041534,0.3608,72665.0,72622.0,0.71308]
[1730232041739,0.3608,72667.0,72656.0,0.3608]
[1730232041924,0.3608,72667.0,72656.0,0.3056729]
[1730232042128,0.068815,72662.0,72656.0,0.3056729]
[1730232042541,0.068818,72659.0,72656.0,0.3056729]
[1730232043236,0.3608,72667.0,72656.0,0.3056729]
[1730232043237,0.068813,72664.0,72656.0,0.3056729]
[1730232043442,0.068813,72664.0,72657.0,0.068819]
[1730232043747,0.3608,72667.0,72664.0,0.068813]
[1730232043927,0.3608,72667.0,72665.0,0.068812]
[1730232044130,0.3608,72667.0,72663.0,0.3056729]
[1730232044131,0.3608,72673.0,72663.0,0.3056729]
[1730232044326,0.3608,72673.0,72672.0,0.068805]
[1730232044731,0.3608,72673.0,72670.0,0.3056729]
[1730232044933,0.3608,72673.0,72657.0,0.3056729]
[1730232044934,0.068812,72666.0,72657.0,0.3056729]
[1730232045135,0.068812,72665.0,72658.0,0.078448]
[1730232045337,0.3608,72667.0,72658.0,0.00963]
[1730232045539,0.068818,72659.0,72658.0,0.00963]
[1730232045842,0.068824,72653.0,72646.0,0.06883]
[1730232046340,0.068824,72652.0,72646.0,0.06883]
[1730232046534,0.3608,72654.0,72647.0,0.00963]
[1730232047034,0.3608,72654.0,72648.0,0.068828]
[1730232047238,0.3608,72654.0,72647.0,0.00963]
[1730232047239,0.3608,72654.0,72650.0,0.068826]
[1730232047629,0.3608,72654.0,72647.0,0.00963]
[1730232047829,0.3608,72654.0,72649.0,0.068827]
[1730232048029,0.3608,72654.0,72650.0,0.3056729]
[1730232048447,0.068822,72655.0,72650.0,0.3056729]
[1730232048753,0.429617,72660.0,72650.0,0.3056729]
[1730232048934,0.3608,72660.0,72656.0,0.3056729]
[1730232049129,0.3608,72660.0,72656.0,0.3744929]